bitfinex-derivatives/quotes_ETHF0:USTF0_20250905
["timestamp","ask_amount","ask_price","bid_price","bid_amount"]
[1757111902318,3.4166,4313.3,4313.2,0.731]
[1757111903113,3.2078,4313.3,4313.2,0.731]
[1757111904209,3.2078,4313.3,4312.8,3.4418]
[1757111904210,3.6221,4313.3,4312.9,0.3179]
[1757111904411,0.4143,4313.0,4312.9,0.731]
[1757111904617,0.7199,4313.0,4312.9,0.731]
[1757111904815,0.2088,4313.0,4312.9,0.731]
[1757111906718,0.4143,4312.6,4312.5,0.848]
[1757111906918,0.7199,4312.6,4312.5,0.848]
[1757111908621,0.7199,4312.6,4312.2,0.3179]
[1757111908822,0.4143,4312.3,4312.2,0.965]
[1757111909022,0.7199,4312.3,4312.2,0.965]
[1757111910311,0.3056,4312.9,4312.2,0.6471]
[1757111910515,0.7199,4312.9,4312.8,0.5275]
[1757111910714,1.28846086,4312.9,4312.3,0.3179]
[1757111911022,0.7199,4312.9,4312.8,0.5275]
[1757111911211,1.28844946,4312.9,4312.8,0.5275]
[1757111911717,1.28844946,4312.9,4312.3,0.3179]
[1757111912022,0.7199,4312.9,4312.8,0.2096]
[1757111912323,1.28844761,4312.9,4312.8,0.5275]
[1757111912618,1.28844761,4312.9,4312.8,0.731]
[1757111913623,1.28844761,4312.9,4312.8,0.5275]
[1757111913827,1.28844761,4312.9,4312.8,0.2096]
[1757111914424,1.28844761,4312.9,4312.6,0.3179]
[1757111914627,0.7199,4312.9,4312.6,0.3179]
[1757111914930,0.4143,4312.3,4312.2,0.965]
[1757111915118,0.7199,4312.3,4312.2,0.965]
[1757111915518,0.7199,4312.3,4312.2,0.731]
[1757111915725,0.7199,4312.3,4312.2,0.5275]
[1757111916022,0.7199,4312.3,4312.2,0.731]
[1757111917223,0.1208,4313.0,4312.2,0.731]
[1757111917521,1.28848097,4312.9,4312.8,0.731]
[1757111917826,1.28848097,4312.9,4312.8,0.5275]
[1757111918421,1.28848097,4312.9,4312.2,0.3179]
[1757111918621,1.28848097,4312.8,4312.7,0.2096]
[1757111918827,1.28848097,4312.8,4312.7,0.5275]
[1757111922836,1.28845837,4312.8,4312.7,0.5275]
[1757111924037,1.28845837,4312.8,4312.7,0.2096]
[1757111924229,1.28845837,4312.8,4312.4,0.3179]
[1757111924425,0.7199,4312.8,4312.7,0.731]
[1757111924627,1.28845978,4312.8,4312.7,0.731]
[1757111925438,1.28845978,4312.8,4312.7,0.5275]
[1757111926824,1.28845978,4312.8,4312.2,0.3179]
[1757111927028,0.7199,4312.8,4312.2,0.3179]
[1757111927449,0.7199,4312.8,4312.7,0.2096]
[1757111927642,1.2884566,4312.8,4312.7,0.2096]
[1757111928340,1.2884566,4312.8,4312.7,0.5149]
[1757111930342,1.2884566,4312.8,4312.1,0.234]
[1757111930535,0.7199,4312.8,4312.2,0.3053]
[1757111933344,0.98006579,4312.7,4312.6,0.2126]
[1757111933545,1.27336579,4312.7,4312.6,0.2126]
[1757111933844,1.27336579,4312.7,4312.6,0.5179]
[1757111934043,1.27336579,4312.7,4312.2,0.3053]
[1757111934244,1.27336579,4312.7,4312.1,0.234]
[1757111934245,0.7043,4312.7,4312.1,0.234]
[1757111934444,0.7043,4312.7,4312.2,0.3053]
[1757111934634,0.7043,4312.7,4312.6,0.2126]
[1757111934838,1.27351665,4312.7,4312.6,0.5179]
[1757111935539,0.56921665,4312.7,4312.6,0.7213]
[1757111935740,0.2933,4313.0,4312.9,0.416]
[1757111935946,3.2078,4313.3,4313.0,0.1198]
[1757111936144,1.06472912,4313.2,4313.1,0.7213]
[1757111937648,1.27362912,4313.2,4313.1,0.7213]
[1757111938247,0.56932912,4313.2,4313.1,0.7213]
[1757111938442,0.2021,4313.2,4313.1,0.7213]
[1757111938648,0.4954,4313.2,4313.1,0.7213]
[1757111938849,0.7043,4313.2,4313.1,0.7213]
[1757111941451,0.2021,4313.2,4313.1,0.7213]
[1757111941753,3.2078,4313.3,4313.2,0.7213]
[1757111942048,3.77691288,4313.3,4313.2,0.7213]
[1757111942251,3.2078,4313.3,4313.2,0.7213]
[1757111942959,3.4099,4313.3,4313.2,0.7213]
[1757111943251,3.7032,4313.3,4313.2,0.7213]
[1757111943646,3.9121,4313.3,4313.2,0.7213]
[1757111943847,0.7043,4313.3,4313.2,0.7213]
[1757111944948,0.2933,4313.2,4312.9,0.3053]
[1757111945151,0.7043,4313.0,4312.9,0.7213]
[1757111946945,0.7043,4313.0,4312.6,3.2078]
[1757111946946,0.411,4313.0,4312.6,3.2078]
[1757111947146,0.411,4313.0,4311.7,34.08919404]
[1757111947147,0.411,4312.3,4312.1,3.2078]
[1757111947349,0.2933,4311.7,4311.1,0.3053]
[1757111947556,0.7043,4311.2,4311.1,0.7213]
[1757111948049,0.7043,4311.2,4311.1,0.5179]
[1757111948240,0.7043,4311.2,4311.1,0.7213]
[1757111952155,0.1263,4312.0,4311.1,0.7213]
[1757111952351,0.7043,4311.9,4311.8,0.7213]
[1757111955552,0.7043,4311.9,4311.6,0.229]
[1757111956154,0.411,4311.9,4311.6,0.5343]
[1757111956353,0.2933,4311.9,4311.7,0.5179]
[1757111956549,0.411,4311.8,4311.5,3.2078]
[1757111956757,0.411,4311.3,4311.0,0.3053]
[1757111956956,0.7043,4311.2,4311.0,0.3053]
[1757111957260,0.7043,4311.2,4311.1,0.9553]
[1757111957453,0.411,4311.2,4311.1,0.9553]
[1757111958255,0.7043,4311.2,4311.1,0.9553]
[1757111958453,0.2021,4311.2,4311.1,0.9553]
[1757111958652,0.531,4312.0,4311.9,0.4081]
[1757111958849,0.2102,4312.0,4311.9,0.7213]
[1757111960663,0.531,4312.0,4311.9,0.7213]
[1757111961359,3.2078,4312.1,4312.0,0.434]
[1757111961560,0.531,4312.7,4312.6,0.4081]
[1757111961865,0.2102,4312.7,4312.6,0.7213]
[1757111963864,3.2078,4313.4,4312.6,0.7213]
[1757111964157,0.7281,4313.3,4313.2,0.7213]
[1757111967169,0.7281,4313.3,4313.2,0.1957]
[1757111968559,0.7281,4313.3,4313.2,0.5089]
[1757111968762,0.7281,4313.3,4313.2,0.7213]
[1757111974777,0.7281,4313.3,4313.0,3.2078]
[1757111974979,0.4073,4313.1,4313.0,3.2078]
[1757111975272,0.1195,4313.0,4312.5,0.234]
[1757111975477,0.7281,4312.9,4312.8,0.5089]
[1757111976575,0.7281,4312.9,4312.8,0.7213]
[1757111978279,0.7281,4312.9,4312.8,0.5089]
[1757111979878,0.3208,4312.8,4312.6,0.3132]
[1757111980072,0.3208,4312.8,4312.7,0.1957]
[1757111980272,0.3208,4312.8,4312.7,0.7213]
[1757111980273,0.7281,4312.8,4312.7,0.7213]
[1757111980580,0.2102,4312.8,4312.7,0.7213]
[1757111980779,0.531,4312.8,4312.7,0.7213]
[1757111983280,0.7281,4312.8,4312.7,0.7213]
[1757111991186,0.2102,4312.8,4312.7,0.7213]
[1757111991486,0.5081,4313.1,4313.0,0.7202]
[1757111991681,1.07740648,4313.1,4313.0,0.7202]
[1757111991887,1.27230648,4313.1,4313.0,0.7202]
[1757111993985,1.27230648,4313.1,4313.0,0.5142]
[1757111994184,1.27230648,4313.1,4312.6,0.3134]
[1757111994490,0.5081,4312.7,4312.6,0.7202]
[1757111994787,0.703,4312.7,4312.6,0.7202]
[1757111995184,0.703,4312.7,4312.4,0.3134]
[1757111995390,0.8247,4312.5,4312.4,0.3134]
[1757111995691,0.703,4312.5,4312.4,0.5142]
[1757111996381,0.703,4312.4,4312.3,0.2008]
[1757111996587,0.703,4312.4,4312.3,0.7202]
[1757111998594,0.3916,4312.4,4312.3,0.7202]
[1757111999193,0.703,4312.4,4312.3,0.7202]
[1757111999495,0.3114,4312.7,4312.3,0.7202]
[1757111999694,0.3114,4312.9,4312.4,0.3134]
[1757111999894,1.27140815,4312.8,4312.7,0.7202]
[1757112001082,1.27140815,4312.8,4312.7,0.5142]
[1757112001288,0.96000815,4312.8,4312.7,0.2008]
[1757112001593,0.3916,4312.8,4312.7,0.5142]
[1757112001793,1.27152689,4312.8,4312.7,0.5142]
[1757112002194,1.27152689,4312.8,4312.7,0.7202]
[1757112003997,1.27152689,4312.8,4312.7,0.5142]
[1757112004997,0.3916,4312.3,4312.2,0.7482]
[1757112005197,0.703,4312.3,4312.2,0.7482]
[1757112005692,0.703,4312.3,4312.2,0.9542]
[1757112010594,0.1217,4313.0,4312.2,0.6408]
[1757112010595,0.3114,4312.9,4312.2,0.6408]
[1757112010804,0.5081,4312.4,4312.3,0.7202]
[1757112011897,3.2078,4313.2,4312.5,0.1251]
[1757112012102,0.56894684,4313.1,4313.0,0.8453]
[1757112012293,0.76564684,4313.1,4313.0,0.8453]
[1757112012900,1.07704684,4313.1,4313.0,0.8453]
[1757112013502,1.27194684,4313.1,4313.0,0.7202]
[1757112015102,1.27185541,4313.1,4313.0,0.7202]
[1757112019006,0.719,4312.8,4312.7,0.5034]
[1757112019399,0.719,4312.8,4312.7,0.7068]
[1757112022204,1.28770602,4312.8,4312.6,0.234]
[1757112022406,0.4167,4312.8,4312.7,0.5034]
[1757112022606,0.4167,4312.8,4312.7,0.7068]
[1757112023207,1.28771454,4312.8,4312.7,0.7068]
[1757112024304,3.2078,4313.2,4312.7,0.4005]
[1757112024601,3.2078,4313.2,4313.1,0.7068]
[1757112025017,3.4192,4313.2,4313.1,0.7068]
[1757112026005,0.5137,4313.2,4313.1,0.7068]
[1757112026600,0.719,4313.2,4313.1,0.7068]
[1757112027898,0.4167,4313.2,4313.1,0.7068]
[1757112028204,0.2114,4313.2,4313.1,0.7068]
[1757112028403,0.5137,4313.2,4313.1,0.7068]
[1757112029407,0.2114,4313.2,4313.1,0.7068]
[1757112029602,3.2078,4313.7,4313.2,0.3063]
[1757112029908,3.9268,4313.7,4313.6,0.5034]
[1757112036410,4.49202443,4313.7,4313.6,0.5034]
[1757112037504,4.49202443,4313.7,4313.0,0.1257]
[1757112037705,0.719,4313.2,4313.1,0.7068]
[1757112038907,0.719,4313.2,4313.1,0.1971]
[1757112039108,0.719,4313.1,4313.0,0.3063]
[1757112039413,0.719,4313.1,4312.9,3.2078]
[1757112039612,0.3023,4313.0,4312.9,3.7112]
[1757112039814,0.719,4313.0,4312.9,3.7112]
[1757112040024,0.719,4312.6,4312.5,0.5034]
[1757112040210,0.3023,4313.4,4312.9,0.3063]
[1757112040415,1.28442175,4313.3,4313.2,0.7068]
[1757112042118,1.28442175,4313.3,4312.9,0.3063]
[1757112042318,0.719,4312.9,4312.8,0.9408]
[1757112043710,0.719,4312.9,4312.8,0.7068]
[1757112044018,0.719,4312.9,4312.8,0.234]
[1757112045717,0.719,4312.9,4312.8,0.5403]
[1757112048522,0.719,4312.9,4312.8,0.7374]
[1757112052016,0.4048,4312.5,4312.3,0.234]
[1757112052319,0.7091,4312.5,4312.4,3.7126]
[1757112052534,0.7091,4312.5,4312.4,3.9128]
[1757112052821,0.8297,4312.5,4312.4,3.7126]
[1757112053018,0.7091,4312.5,4312.4,3.9128]
[1757112053320,0.7091,4312.5,4312.4,0.705]
[1757112055723,0.8297,4312.5,4312.4,0.5048]
[1757112056816,0.7091,4312.5,4312.4,0.5048]
[1757112057426,0.7091,4312.5,4312.4,0.705]
[1757112061130,0.7091,4312.5,4312.4,3.9128]
[1757112068024,0.2008,4312.5,4312.4,3.9128]
[1757112069125,3.7129,4313.2,4313.1,0.4105]
[1757112069326,0.3043,4313.7,4313.1,0.4105]
[1757112069527,0.76948788,4313.6,4313.5,0.8328]
[1757112070043,0.56868788,4313.6,4313.5,0.8328]
[1757112070329,3.7129,4313.8,4313.7,0.4105]
[1757112070528,4.4854204,4313.8,4313.7,0.705]
[1757112076132,4.4854204,4313.8,4313.7,0.5048]
[1757112077237,3.9169,4313.8,4313.7,0.5048]
[1757112080733,0.7128,4313.6,4313.5,0.5167]
[1757112081232,0.1283,4313.5,4313.4,0.234]
[1757112081438,0.8411,4313.5,4313.4,0.234]
[1757112081742,0.5462,4313.5,4313.1,0.5377]
[1757112081938,0.4179,4313.2,4313.1,0.447]
[1757112082131,0.7128,4313.2,4313.1,0.447]
[1757112082333,0.7128,4313.2,4313.1,0.6496]
[1757112082533,0.7128,4313.2,4313.1,0.9533]
[1757112083942,0.1283,4313.0,4312.9,3.4418]
[1757112084136,0.1283,4313.0,4312.9,3.9585]
[1757112084137,0.7128,4313.0,4312.9,3.9585]
[1757112084344,0.7128,4313.0,4312.9,4.1611]
[1757112087639,0.7128,4313.0,4312.9,0.9533]
[1757112102147,0.8411,4313.0,4312.9,0.7507]
[1757112102650,0.8411,4313.0,4312.3,3.2078]
[1757112102856,0.2085,4312.5,4312.4,0.7193]
[1757112103049,0.7128,4312.5,4312.4,0.7193]
[1757112118282,0.2085,4312.5,4312.4,0.7193]
[1757112118684,0.234,4313.3,4312.1,0.234]
[1757112118685,0.7187,4313.3,4313.2,0.1984]
[1757112118881,1.28688502,4313.3,4313.2,0.707]
[1757112119181,0.56818502,4313.3,4313.2,0.707]
[1757112119380,0.2086,4313.9,4313.8,0.3068]
[1757112119580,0.5093,4313.9,4313.8,0.707]
[1757112119782,1.07737318,4313.9,4313.8,0.707]
[1757112121785,1.28677318,4313.9,4313.8,0.707]
[1757112125683,1.28677318,4313.9,4313.8,0.5052]
[1757112125881,1.28677318,4313.9,4313.6,0.3068]
[1757112126083,0.7187,4313.9,4313.5,0.122]
[1757112126486,0.7187,4313.9,4313.6,0.3068]
[1757112126988,0.7187,4313.9,4313.8,0.5052]
[1757112127189,1.28603144,4313.9,4313.8,0.5052]
[1757112127387,0.7187,4313.9,4313.8,0.5052]
[1757112133397,0.7187,4313.9,4313.8,0.707]
[1757112134296,0.7187,4313.9,4313.6,0.3068]
[1757112134495,0.7187,4313.9,4313.2,0.3068]
[1757112134496,0.3007,4313.8,4313.2,0.3068]
[1757112134698,0.7187,4313.8,4313.7,0.1984]
[1757112134897,0.7187,4313.8,4313.7,0.5052]
[1757112137795,0.7187,4313.8,4313.7,0.707]
[1757112142403,0.291,4314.1,4313.7,3.9148]
[1757112142599,0.291,4314.1,4314.0,0.8236]
[1757112142793,0.505,4314.1,4314.0,0.8236]
[1757112143606,0.714,4314.1,4314.0,0.7001]
[1757112143905,0.291,4313.5,4313.2,3.2078]
[1757112144106,0.714,4313.4,4313.3,1.15111681]
[1757112144509,0.714,4313.4,4313.3,1.21839681]
[1757112146806,0.714,4313.4,4313.3,0.98439681]
[1757112147305,0.505,4314.1,4314.0,0.2015]
[1757112147608,1.28210081,4314.1,4314.0,0.5006]
[1757112148409,1.28210081,4314.1,4313.5,0.1235]
[1757112148607,0.714,4313.7,4313.6,0.98501321]
[1757112148812,1.28210081,4313.7,4313.6,0.98501321]
[1757112149103,0.291,4314.0,4313.6,0.98501321]
[1757112149296,1.07364338,4313.9,4313.8,0.7001]
[1757112149497,1.07364338,4313.9,4313.8,0.98501321]
[1757112151011,1.28264338,4313.9,4313.8,0.98501321]
[1757112151401,0.714,4313.9,4313.8,0.98501321]
[1757112153204,0.214,4313.9,4313.8,0.98501321]
[1757112153810,0.214,4314.0,4313.9,0.2991]
[1757112154008,0.505,4314.0,4313.9,0.98501321]
[1757112154205,1.07343487,4314.0,4313.9,0.98501321]
[1757112154402,0.56843487,4314.0,4313.9,0.98501321]
[1757112154606,3.2078,4314.2,4314.1,0.7001]
[1757112154808,3.77618702,4314.2,4314.1,0.98501321]
[1757112155314,3.2078,4314.7,4314.1,0.68591321]
[1757112155507,1.28226967,4314.6,4314.5,0.7001]
[1757112155703,1.28226967,4314.6,4314.5,0.5006]
[1757112155905,0.423,4314.2,4314.1,0.7001]
[1757112156105,0.714,4314.2,4314.1,0.98464452]
[1757112156515,1.0,4315.0,4314.7,0.2991]
[1757112156705,1.0,4315.0,4314.9,0.7001]
[1757112156901,1.0,4315.0,4314.9,0.98464452]
[1757112157715,1.714,4315.0,4314.9,0.98464452]
[1757112158513,1.0,4315.0,4314.9,0.98464452]
[1757112160016,1.214,4315.0,4314.9,0.98464452]
[1757112160314,1.0,4315.0,4314.9,1.21864452]
[1757112163721,0.214,4315.1,4315.0,1.5245]
[1757112164015,0.214,4315.1,4315.0,1.80904452]
[1757112164321,0.214,4315.1,4315.0,2.10814452]
[1757112164817,3.2078,4315.7,4315.0,2.10814452]
[1757112164818,3.6308,4315.7,4315.6,0.2015]
[1757112165317,3.9218,4315.7,4315.6,0.2015]
[1757112166016,3.9218,4315.7,4315.6,0.5006]
[1757112166318,3.9218,4315.7,4315.6,0.7001]
[1757112168416,3.9218,4315.7,4315.6,0.5006]
[1757112169618,3.9218,4315.7,4315.6,0.7011]
[1757112169823,3.6308,4315.7,4315.6,0.7011]
[1757112170322,3.4218,4315.7,4315.6,0.7011]
[1757112170514,3.7266,4315.7,4315.6,0.7011]
[1757112171114,1.2501264,4317.7,4316.1,1.04252]
[1757112171335,0.1947,4317.3,4316.4,0.41697]
[1757112171521,0.3048,4317.2,4316.5,0.69978377]
[1757112171722,0.511,4318.0,4317.9,0.7038]
[1757112172022,0.17,4318.9,4318.0,0.12]
[1757112172221,0.564,4318.9,4318.8,0.2074]
[1757112172423,0.564,4318.9,4318.8,0.7038]
[1757112173327,0.564,4318.9,4318.8,0.9428]
[1757112174424,0.8688,4318.9,4318.8,0.9428]
[1757112175226,0.8688,4318.9,4318.8,0.239]
[1757112175724,0.8688,4318.9,4318.8,0.7423]
[1757112176118,0.8688,4318.9,4318.8,0.9428]
[1757112179130,4.8688,4318.9,4318.1,0.2959]
[1757112179328,4.0766,4318.9,4318.1,0.2959]
[1757112179628,0.394,4317.6,4317.5,0.2074]
[1757112179823,0.6988,4317.6,4317.5,0.5033]
[1757112180727,0.394,4317.6,4317.5,0.8238]
[1757112181034,0.394,4317.7,4317.6,0.7038]
[1757112183619,3.0236,4318.6,4318.5,0.4159]
[1757112183815,3.0236,4318.6,4318.5,0.12]
[1757112184025,3.25516,4318.6,4318.5,0.4159]
[1757112184728,3.0236,4318.6,4318.5,0.4159]
[1757112185422,7.0236,4318.6,4318.1,0.2959]
[1757112185728,3.0236,4318.6,4318.1,0.2959]
[1757112186428,3.0236,4318.6,4318.0,0.12]
[1757112186634,3.0236,4318.6,4318.1,0.2959]
[1757112186931,3.0236,4318.6,4318.0,0.4159]
[1757112187123,3.0236,4318.6,4317.5,0.12]
[1757112187124,0.55316355,4318.5,4317.7,0.2959]
[1757112187331,3.0236,4318.6,4317.7,0.2959]
[1757112187332,0.55316355,4318.4,4317.7,0.2959]
[1757112187533,0.23159001,4318.5,4317.7,0.2959]
[1757112187725,0.55329354,4318.4,4317.7,0.2959]
[1757112188029,0.23159001,4318.5,4317.7,0.2959]
[1757112188219,3.0236,4318.6,4317.7,0.2959]
[1757112188220,0.55338061,4318.4,4318.0,0.12]
[1757112188421,0.79238061,4318.3,4318.1,0.2959]
[1757112188627,0.239,4318.3,4318.1,0.2959]
[1757112188930,0.239,4318.3,4318.0,0.12]
[1757112189122,4.239,4318.3,4318.0,0.12]
[1757112190124,4.239,4318.3,4318.1,0.2959]
[1757112190330,0.5537388,4318.2,4318.1,0.2959]
[1757112190526,0.5537388,4318.2,4318.0,0.12]
[1757112190527,4.5537388,4318.2,4318.0,0.12]
[1757112190833,3.2078,4318.1,4318.0,0.4159]
[1757112192334,3.76191114,4318.1,4318.0,0.4159]
[1757112197829,3.76191114,4318.1,4318.0,0.12]
[1757112198033,7.76191114,4318.1,4318.0,0.12]
[1757112198224,7.76191114,4318.1,4317.5,0.12]
[1757112198427,0.79311114,4318.0,4317.5,0.12]
[1757112198634,0.55411114,4317.9,4317.6,0.3044]
[1757112199027,0.55411114,4317.9,4317.5,0.12]
[1757112199228,0.55411114,4317.9,4317.6,0.3044]
[1757112199624,0.55411114,4317.9,4317.5,0.12]
[1757112199823,0.55411114,4317.9,4317.6,0.3044]
[1757112200325,0.55411114,4317.9,4317.5,0.12]
[1757112200534,0.55411114,4317.9,4317.8,0.6936]
[1757112200839,0.5842,4318.9,4318.8,0.6936]
[1757112201240,0.5842,4318.9,4318.6,0.3044]
[1757112201241,0.8242,4318.9,4318.6,0.3044]
[1757112201437,0.4142,4318.4,4318.0,3.3323]
[1757112201635,0.5445,4318.4,4318.1,0.3044]
[1757112202340,0.4142,4318.4,4318.3,0.1934]
[1757112202635,0.4142,4318.4,4318.3,0.4978]
[1757112203136,0.24,4318.6,4318.3,0.6936]
[1757112203337,0.4484,4318.6,4318.5,0.8181]
[1757112203536,0.6542,4318.6,4318.5,0.8181]
[1757112206838,3.2078,4318.8,4318.5,0.8181]
[1757112207049,0.17,4318.9,4318.8,0.6936]
[1757112211242,0.5839,4318.9,4318.8,0.6936]
[1757112212642,1.13779938,4318.9,4318.8,0.6936]
[1757112212943,4.47569938,4318.9,4318.5,0.1245]
[1757112213149,0.4139,4318.7,4318.6,0.4978]
[1757112213350,0.96779938,4318.7,4318.6,0.6936]
[1757112214040,0.55389938,4318.7,4318.6,0.6936]
[1757112214237,0.55389938,4318.8,4318.6,0.6936]
[1757112214441,0.55389938,4318.8,4318.7,0.3044]
[1757112214946,0.55389938,4318.8,4318.7,0.6936]
[1757112215950,3.3778,4318.9,4318.8,0.3044]
[1757112216351,3.3778,4318.9,4318.8,0.6936]
[1757112216745,0.17,4318.9,4318.8,0.6936]
[1757112220557,0.3781,4318.9,4318.8,0.6936]
[1757112221151,0.17,4318.9,4318.8,0.6936]
[1757112224267,3.2078,4319.4,4319.3,0.6936]
[1757112224966,0.1,4320.0,4319.3,0.6936]
[1757112224967,0.1,4320.0,4319.4,0.3044]
[1757112225163,0.4168,4319.9,4319.8,0.1934]
[1757112225367,0.7281,4319.9,4319.8,0.1934]
[1757112225567,0.1231,4319.5,4319.4,0.1934]
[1757112225764,0.8512,4319.0,4318.9,0.1934]
[1757112226072,0.8512,4319.0,4318.9,0.3892]
[1757112228664,0.5399,4319.0,4318.7,3.2078]
[1757112228870,0.4051,4318.8,4318.7,3.6453]
[1757112229071,0.7217,4318.8,4318.7,3.6453]
[1757112229270,0.7217,4318.8,4318.7,3.8575]
[1757112230969,0.5167,4318.8,4318.7,3.8575]
[1757112231173,0.5167,4318.8,4318.7,4.0997]
[1757112231363,0.7217,4318.8,4318.7,3.8575]
[1757112233170,0.7217,4318.8,4318.7,3.6165]
[1757112233365,0.7217,4318.8,4318.7,0.241]
[1757112233366,1.27665958,4318.8,4318.7,0.241]
[1757112233570,1.27665958,4318.8,4318.7,0.4375]
[1757112235168,1.27665958,4318.8,4318.7,0.241]
[1757112236365,0.7217,4318.3,4318.2,3.4043]
[1757112236570,0.7217,4318.3,4318.2,3.69076754]
[1757112236775,0.7217,4318.3,4318.2,3.93076754]
[1757112236963,0.7217,4318.3,4318.2,4.14296754]
[1757112239976,0.5167,4318.3,4318.2,4.38516754]
[1757112241879,0.1169,4318.5,4318.2,4.14296754]
[1757112242177,0.1169,4318.5,4318.3,0.28639405]
[1757112242385,0.522,4318.5,4318.4,0.1965]
[1757112242577,0.317,4318.5,4318.4,0.6509]
[1757112242882,0.6336,4318.5,4318.4,0.6509]
[1757112245374,0.6336,4318.5,4318.4,0.4087]
[1757112245881,0.8386,4318.5,4318.4,0.4087]
[1757112246683,0.8386,4318.5,4318.2,3.2078]
[1757112246684,0.3166,4318.4,4318.2,3.2078]
[1757112246883,1.27796552,4318.3,4318.2,3.2078]
[1757112248883,1.27796552,4318.3,4318.0,0.24]
[1757112249185,0.7217,4318.1,4318.0,0.4365]
[1757112249873,0.7217,4318.1,4317.7,3.2078]
[1757112250084,0.7217,4317.9,4317.8,0.93505408]
[1757112250273,0.3166,4318.4,4317.9,0.2422]
[1757112250479,0.5167,4318.4,4318.3,0.6509]
[1757112250677,1.07260815,4318.4,4318.3,0.4087]
[1757112250978,1.27760815,4318.4,4318.3,0.4087]
[1757112253486,1.27760815,4318.4,4318.3,0.1965]
[1757112254880,1.27760815,4318.4,4318.3,0.4087]
[1757112255186,0.7217,4318.4,4318.3,0.4087]
[1757112257378,0.3166,4318.4,4318.3,0.6509]
[1757112259283,0.5167,4318.4,4318.3,0.6509]
[1757112259683,0.715,4318.4,4318.3,0.4087]
[1757112261384,1.27154366,4318.4,4318.3,0.69556101]
[1757112261583,1.27154366,4318.4,4318.3,0.239]
[1757112261974,1.27154366,4318.4,4318.3,0.4337]
[1757112264476,1.27154366,4318.4,4318.3,0.1947]
[1757112266892,0.95494366,4318.4,4318.2,3.4468]
[1757112267194,1.28014366,4318.3,4318.2,3.6415]
[1757112267394,1.28014366,4318.3,4318.2,3.92480573]
[1757112270596,1.08184366,4318.3,4318.2,4.36740573]
[1757112270901,0.2097,4318.3,4318.2,4.35998572]
[1757112271092,0.5253,4318.3,4318.2,4.59898572]
[1757112271792,0.5253,4318.3,4318.2,4.36740573]
[1757112274103,0.3156,4318.3,4318.2,4.36740573]
[1757112274694,0.3156,4319.4,4318.3,0.2423]
[1757112274899,1.28055191,4319.3,4319.2,0.395]
[1757112277404,1.28055191,4319.3,4319.2,0.6373]
[1757112279003,1.28055191,4319.3,4319.2,0.395]
[1757112280305,1.28055191,4319.3,4319.2,0.1947]
[1757112280807,1.28055191,4319.3,4319.2,0.395]
[1757112281008,1.28055191,4319.3,4319.2,0.1947]
[1757112281306,1.28055191,4319.3,4318.9,3.2078]
[1757112281601,0.8452,4319.0,4318.9,3.4025]
[1757112281905,0.8452,4319.0,4318.9,3.6415]
[1757112282104,0.8452,4319.0,4318.9,3.8418]
[1757112287311,0.8452,4319.0,4318.9,3.6028]
[1757112287512,0.8452,4319.0,4318.9,3.8418]
[1757112288006,0.8452,4319.0,4318.9,3.6028]
[1757112288205,0.8452,4319.0,4318.9,3.4468]
[1757112289811,0.8452,4319.0,4318.9,3.6539]
[1757112291012,0.8452,4319.0,4318.9,3.8541]
[1757112291610,0.8452,4319.0,4318.9,3.6539]
[1757112291802,0.8452,4319.0,4318.9,3.4468]
[1757112292715,0.8452,4319.0,4318.9,3.4458]
[1757112293808,1.40177221,4319.0,4318.8,0.238]
[1757112294008,1.26237221,4318.9,4318.8,0.238]
[1757112297820,0.3152,4318.8,4318.5,0.238]
[1757112298013,0.7058,4318.6,4318.5,0.6453]
[1757112298214,0.7058,4318.6,4318.5,0.92938108]
[1757112299823,0.7058,4318.6,4318.5,0.69138108]
[1757112300119,0.7058,4318.6,4318.5,0.92938108]
[1757112300622,1.2628631,4318.6,4318.5,0.238]
[1757112301123,1.2628631,4318.6,4318.5,0.4451]
[1757112306519,1.2628631,4318.6,4318.5,0.238]
[1757112310140,0.3906,4317.9,4317.8,3.6151]
[1757112310334,0.7058,4317.9,4317.8,3.93734363]
[1757112311524,0.7058,4317.9,4317.8,4.13754363]
[1757112311725,0.7058,4317.9,4317.8,4.37974363]
[1757112316737,0.7058,4317.9,4317.8,4.13754363]
[1757112317533,0.7058,4317.9,4317.8,4.37974363]
[1757112318734,0.7058,4317.9,4317.8,4.13754363]
[1757112318939,0.7058,4317.9,4317.8,3.8531]
[1757112319141,0.7058,4317.9,4317.8,3.2078]
[1757112319343,1.26246788,4317.9,4317.8,3.2078]
[1757112319641,1.26246788,4317.9,4317.8,3.4118]
[1757112319941,1.26246788,4317.9,4317.8,3.8652]
[1757112321044,1.26246788,4317.9,4317.8,3.6228]
[1757112321240,0.87186788,4317.9,4317.8,4.1022]
[1757112321541,0.1259,4318.5,4317.9,0.2424]
[1757112321742,0.826,4318.5,4318.4,0.204]
[1757112322045,0.55655366,4318.5,4318.4,3.8652]
[1757112322341,0.3021,4318.9,4318.8,0.6574]
[1757112322536,0.3021,4318.9,4318.8,0.8944]
[1757112322733,0.85860438,4318.9,4318.8,0.8944]
[1757112323233,1.05890438,4318.9,4318.8,0.8944]
[1757112323433,1.25660438,4318.9,4318.8,0.652]
[1757112324839,1.25738391,4318.9,4318.8,0.652]
[1757112325543,1.25738391,4318.9,4318.8,0.8944]
[1757112327644,1.25738391,4318.9,4318.8,0.652]
[1757112327842,0.3183,4318.5,4318.4,3.6228]